fUST/lending_fUST_20251103
["ID","MTS","AMOUNT","RATE_DAILY","PERIOD"]
[392912594,1762130941264,-370.42069913,0.00018192,2]
[392912595,1762130943463,-220.64194548,0.00018192,2]
[392912596,1762130945093,-194.4027745,0.00018192,2]
[392912597,1762130946788,-187.95534074,0.00018192,2]
[392912599,1762130963256,-180.43184543,0.00018192,2]
[392912600,1762130964981,-155.89491663,0.00018192,2]
[392912601,1762130968377,-181.54533025,0.00018192,2]
[392912602,1762130971101,-184.41014922,0.00018192,2]
[392912603,1762130972675,-290.79421355,0.00018192,2]
[392912604,1762130972700,-49.62262011,0.00018284,2]
[392912605,1762130974226,-261.25216058,0.00018284,2]
[392912606,1762131003868,2000.0,0.0002,7]
[392912640,1762131031760,-17.04988276,0.00018284,2]
[392912642,1762131031769,-866.58831197,0.00018376,2]
[392912647,1762131031810,-2555.31765957,0.00018376,2]
[392912649,1762131031819,-332.25049203,0.00018461,2]
[392912651,1762131031828,-1200.0,0.00018561,2]
[392912653,1762131031837,-500.0,0.00018561,2]
[392912655,1762131031847,-500.0,0.00018561,2]
[392912657,1762131031856,-500.0,0.00018561,2]
[392912659,1762131031865,-236.00346444,0.00018561,2]
[392912662,1762131031873,-500.0,0.00018561,2]
[392912665,1762131031882,-500.0,0.00018561,2]
[392912668,1762131031891,-632.04864587,0.00018561,2]
[392912670,1762131031900,-500.0,0.00018561,2]
[392912672,1762131031909,-500.0,0.00018561,2]
[392912674,1762131031917,-264.58074934,0.00018561,2]
[392912966,1762131037729,-235.41925066,0.00018561,2]
[392912968,1762131037738,-500.0,0.00018561,2]
[392912970,1762131037747,-260.53183541,0.00018561,2]
[392912972,1762131037756,-500.0,0.00018561,2]
[392912973,1762131037765,-500.0,0.00018561,2]
[392912975,1762131037774,-600.0,0.00018561,2]
[392912977,1762131037782,-5000.0,0.00018562,2]
[392912979,1762131037793,-300.0,0.00018648,2]
[392912981,1762131037802,-300.0,0.00018648,2]
[392912983,1762131037811,-300.0,0.00018648,2]
[392912985,1762131037821,-2826.06731387,0.00018668,2]
[392912987,1762131037830,-640.04463117,0.00018668,2]
[392912989,1762131037842,-2570.04830951,0.00018668,2]
[392912991,1762131037851,-13850.94891909,0.0001875,2]
[392913023,1762131040120,-3e-08,0.0001875,2]
[392913043,1762131045907,-320.99515381,0.00018563,2]
[392913044,1762131045916,-104054.65527437,0.0001875,2]
[392913045,1762131059272,423.99,0.0001874,3]
[392913046,1762131070089,211.99,0.0001874,3]
[392913047,1762131079076,500.0,0.00037517,60]
[392913048,1762131081148,636.0,0.0001874,3]
[392913049,1762131084449,500.0,0.00037517,60]
[392913050,1762131087727,634.23760085,0.00037517,60]
[392913051,1762131089494,500.0,0.00037517,60]
[392913052,1762131089739,203.47,0.00037517,60]
[392913053,1762131095171,500.0,0.00037517,60]
[392913055,1762131106265,500.0,0.00037517,120]
[392913056,1762131107290,500.0,0.00037517,60]
[392913057,1762131109130,500.0,0.00037517,60]
[392913058,1762131109378,619.32,0.00037517,60]
[392913059,1762131110965,500.0,0.00037517,60]
[392913060,1762131126415,556.23,0.00037517,60]
[392913061,1762131129820,500.0,0.00037517,60]
[392913062,1762131130060,500.0,0.00037517,60]
[392913063,1762131130283,500.0,0.00037517,60]
[392913064,1762131130527,638.48,0.00037517,60]
[392913065,1762131132026,500.0,0.00037517,60]
[392913066,1762131132455,483.08671497,0.00037517,60]
[392913067,1762131132860,211.99,0.0001874,3]
[392913068,1762131138014,548.21789205,0.00037517,60]
[392913069,1762131143253,500.0,0.00037517,60]
[392913070,1762131143520,500.0,0.00037517,60]
[392913071,1762131143554,635.99,0.0001874,3]
[392913072,1762131143762,500.0,0.00037517,60]
[392913073,1762131144004,620.65,0.00037517,60]
[392913074,1762131146226,608.92,0.00037517,60]
[392913075,1762131151026,500.0,0.00037517,60]
[392913076,1762131151270,500.0,0.00037517,60]
[392913077,1762131151511,500.0,0.00037517,60]
[392913078,1762131152188,500.0,0.00037517,60]
[392913079,1762131152375,500.0,0.00037517,60]
[392913080,1762131152614,500.0,0.00037517,60]
[392913081,1762131152884,500.0,0.00037517,60]
[392913082,1762131153121,500.0,0.00037517,60]
[392913083,1762131153364,500.0,0.00037517,60]
[392913084,1762131153648,500.0,0.00037517,60]
[392913085,1762131153886,500.0,0.00037517,60]
[392913086,1762131154135,500.0,0.00037517,60]
[392913087,1762131154404,500.0,0.00037517,60]
[392913088,1762131154655,500.0,0.00037517,60]
[392913089,1762131154907,500.0,0.00037517,60]
[392913090,1762131155169,500.0,0.00037517,60]
[392913091,1762131155449,153.28,0.00037517,60]
[392913092,1762131158261,500.0248,0.00037517,60]
[392913093,1762131162977,500.0,0.00037517,60]
[392913094,1762131163241,500.0,0.00037517,60]
[392913095,1762131163468,500.0,0.00037517,60]
[392913096,1762131163710,500.0,0.00037517,60]
[392913097,1762131163950,500.0,0.00037517,60]
[392913098,1762131164002,157.35390662,0.00037517,60]
[392913099,1762131164428,500.0,0.00037517,60]
[392913100,1762131164786,500.0,0.00037517,60]
[392913101,1762131164845,549.72,0.00037517,21]
[392913102,1762131165096,500.0,0.00037517,60]
[392913103,1762131165132,549.72,0.00037517,21]
[392913104,1762131165338,500.0,0.00037517,60]
[392913105,1762131165368,549.72,0.00037517,21]
[392913106,1762131165596,500.0,0.00037517,60]
[392913107,1762131165627,549.72,0.00037517,21]
[392913108,1762131165823,500.0,0.00037517,60]
[392913109,1762131165858,549.72,0.00037517,21]
[392913110,1762131166102,549.72,0.00037517,21]
[392913111,1762131166163,500.0,0.00037517,60]
[392913112,1762131166364,549.72,0.00037517,21]
[392913113,1762131166425,500.0,0.00037517,60]
[392913114,1762131166635,500.0,0.00037517,60]
[392913115,1762131166665,549.72,0.00037517,21]
[392913116,1762131167006,500.0,0.00037517,60]
[392913117,1762131167040,549.72,0.00037517,21]
[392913118,1762131167169,549.72,0.00037517,21]
[392913119,1762131167227,623.76,0.00037517,60]
[392913120,1762131167442,549.72,0.00037517,21]
[392913121,1762131167695,549.72,0.00037517,21]
[392913122,1762131167947,549.72,0.00037517,21]
[392913123,1762131168191,549.72,0.00037517,21]
[392913124,1762131168372,580.14,0.00037517,60]
[392913125,1762131168440,549.72,0.00037517,21]
[392913126,1762131168710,549.72,0.00037517,21]
[392913127,1762131168951,549.72,0.00037517,21]
[392913128,1762131169188,549.72,0.00037517,21]
[392913129,1762131169438,549.72,0.00037517,21]
[392913130,1762131169670,549.72,0.00037517,21]
[392913131,1762131170255,549.72,0.00037517,21]
[392913132,1762131170495,549.72,0.00037517,21]
[392913133,1762131170746,549.72,0.00037517,21]
[392913134,1762131171023,549.78,0.00037517,21]
[392913135,1762131172962,500.0,0.00037517,60]
[392913136,1762131173191,500.0,0.00037517,60]
[392913137,1762131173426,277.67,0.00037517,60]
[392913138,1762131174821,511.44,0.00037517,60]
[392913139,1762131175083,511.44,0.00037517,60]
[392913140,1762131175249,527.04,0.00037517,60]
[392913141,1762131175687,511.44,0.00037517,60]
[392913142,1762131175926,511.44,0.00037517,60]
[392913143,1762131176164,511.44,0.00037517,60]
[392913144,1762131176411,511.44,0.00037517,60]
[392913145,1762131176640,511.44,0.00037517,60]
[392913146,1762131176896,511.44,0.00037517,60]
[392913147,1762131177154,511.44,0.00037517,60]
[392913148,1762131177403,511.44,0.00037517,60]
[392913149,1762131177642,511.44,0.00037517,60]
[392913150,1762131178230,511.44,0.00037517,60]
[392913151,1762131178483,511.44,0.00037517,60]
[392913152,1762131178715,511.44,0.00037517,60]
[392913153,1762131178967,511.44,0.00037517,60]
[392913154,1762131179216,511.44,0.00037517,60]
[392913155,1762131179458,511.44,0.00037517,60]
[392913156,1762131179686,511.44,0.00037517,60]
[392913157,1762131179956,511.44,0.00037517,60]
[392913158,1762131180080,500.0,0.00037517,60]
[392913159,1762131180237,511.44,0.00037517,60]
[392913160,1762131180488,511.44,0.00037517,120]
[392913161,1762131180724,511.44,0.00037517,120]
[392913162,1762131181071,511.44,0.00037517,120]
[392913163,1762131181338,511.44,0.00037517,120]
[392913164,1762131181874,500.0,0.00037517,60]
[392913165,1762131182101,471.33,0.00037517,60]
[392913166,1762131185469,500.0,0.00037517,60]
[392913167,1762131185694,247.65,0.00037517,60]
[392913168,1762131186544,500.0,0.00037517,60]
[392913169,1762131186810,500.0,0.00037517,60]
[392913170,1762131187060,289.0,0.00037517,60]
[392913171,1762131189774,500.0,0.00037517,60]
[392913172,1762131191001,500.0,0.00037517,60]
[392913173,1762131191638,500.0,0.00037517,60]
[392913174,1762131191888,500.0,0.00037517,60]
[392913175,1762131192126,500.0,0.00037517,60]
[392913176,1762131192446,500.0,0.00037517,60]
[392913177,1762131192698,500.0,0.00037517,60]
[392913178,1762131192880,500.0,0.00037517,60]
[392913179,1762131192934,500.0,0.00037517,60]
[392913180,1762131193197,294.63,0.00037517,60]
[392913181,1762131193253,500.0,0.00037517,60]
[392913182,1762131193408,500.0,0.00037517,60]
[392913183,1762131193638,500.0,0.00037517,60]
[392913184,1762131193879,500.0,0.00037517,60]
[392913185,1762131194034,603.06,0.00037517,60]
[392913186,1762131194106,500.0,0.00037517,60]
[392913187,1762131194377,640.07,0.00037517,60]
[392913188,1762131195460,500.0,0.00037517,60]
[392913189,1762131196563,500.0,0.00037517,60]
[392913190,1762131197273,500.0,0.00037517,60]
[392913191,1762131197843,327.17,0.00037517,60]
[392913192,1762131202542,500.0,0.00037517,60]
[392913193,1762131202807,500.0,0.00037517,30]
[392913194,1762131203042,500.0,0.00037517,30]
[392913195,1762131203575,500.0,0.00037517,60]
[392913196,1762131203608,500.0,0.00037517,30]
[392913197,1762131203750,375.78,0.00037517,60]
[392913198,1762131203781,500.0,0.00037517,30]
[392913199,1762131204019,500.0,0.00037517,30]
[392913200,1762131204291,361.94,0.00037517,30]
[392913201,1762131207716,598.16,0.00037517,60]
[392913202,1762131209325,500.0,0.00037517,60]
[392913203,1762131214270,500.0,0.00037517,60]
[392913204,1762131214665,463.0152943,0.00037517,60]
[392913205,1762131216130,500.0,0.00037517,60]
[392913206,1762131216359,500.0,0.00037517,60]
[392913207,1762131216594,500.0,0.00037517,60]
[392913208,1762131217026,500.0,0.00037517,60]
[392913209,1762131217323,500.0,0.00037517,60]
[392913210,1762131217584,500.0,0.00037517,60]
[392913211,1762131217801,-168.0,0.00018227,2]
[392913212,1762131217824,-69.53869665,0.00018256,2]
[392913213,1762131217882,500.0,0.00037517,60]
[392913214,1762131218262,500.0,0.00037517,60]
[392913215,1762131218386,500.0,0.00037517,60]
[392913216,1762131218504,500.0,0.00037517,60]
[392913217,1762131218761,500.0,0.00037517,60]
[392913218,1762131219014,500.0,0.00037517,60]
[392913219,1762131219254,500.0,0.00037517,60]
[392913220,1762131219490,500.0,0.00037517,60]
[392913221,1762131219722,500.0,0.00037517,60]
[392913222,1762131219966,500.0,0.00037517,60]
[392913223,1762131220613,156.7,0.00037517,60]
[392913224,1762131222997,500.0,0.00037517,60]
[392913225,1762131224247,500.0,0.00037517,60]
[392913226,1762131224446,500.0,0.00037517,60]
[392913227,1762131224695,500.0,0.00037517,60]
[392913228,1762131224943,500.0,0.00037517,60]
[392913229,1762131225193,254.67,0.00037517,60]
[392913230,1762131227398,500.0,0.00037517,60]
[392913231,1762131227632,378.37,0.00037517,60]
[392913232,1762131230024,500.0,0.00037517,60]
[392913233,1762131233706,500.0,0.00037517,60]
[392913234,1762131234727,-98.46130335,0.00018256,2]
[392913235,1762131234751,-89.57489729,0.00018285,2]
[392913236,1762131235566,500.0,0.00037517,60]
[392913237,1762131235797,290.26,0.00037517,60]
[392913238,1762131239246,500.0,0.00037517,60]
[392913239,1762131239498,500.0,0.00037517,60]
[392913240,1762131239747,500.0,0.00037517,60]
[392913241,1762131240033,500.0,0.00037517,60]
[392913242,1762131240289,581.7,0.00037517,60]
[392913243,1762131247310,500.0,0.00037517,60]
[392913244,1762131247549,500.0,0.00037517,60]
[392913245,1762131247792,369.68,0.00037517,60]
[392913246,1762131256237,500.0,0.00037517,60]
[392913247,1762131272171,500.0,0.00037517,60]
[392913248,1762131272417,500.0,0.00037517,60]
[392913249,1762131272662,500.0,0.00037517,60]
[392913250,1762131272889,177.58,0.00037517,60]
[392913251,1762131274670,500.0,0.00037517,60]
[392913252,1762131274902,500.0,0.00037517,60]
[392913253,1762131275136,500.0,0.00037517,60]
[392913254,1762131275726,486.71,0.00037517,60]
[392913255,1762131277826,480.0,0.00037517,60]
[392913257,1762131284569,500.0,0.00037517,60]
[392913258,1762131285099,229.57,0.00037517,60]
[392913259,1762131290346,500.0,0.00037517,60]
[392913260,1762131290593,500.0,0.00037517,60]
[392913261,1762131290826,500.0,0.00037517,60]
[392913262,1762131291060,416.71,0.00037517,60]
[392913263,1762131294532,580.92,0.00037517,60]
[392913264,1762131296401,500.0,0.00037517,60]
[392913265,1762131296700,500.0,0.00037517,60]
[392913266,1762131297024,500.0,0.00037517,60]
[392913267,1762131297204,500.0,0.00037517,60]
[392913268,1762131297441,500.0,0.00037517,60]
[392913269,1762131297670,500.0,0.00037517,60]
[392913270,1762131297926,500.0,0.00037517,60]
[392913271,1762131298160,500.0,0.00037517,60]
[392913272,1762131298415,500.0,0.00037517,60]
[392913273,1762131298650,195.36,0.00037517,60]
[392913274,1762131299903,500.0,0.00037517,60]
[392913275,1762131300636,500.0,0.00037517,60]
[392913276,1762131300693,502.38,0.00037517,60]
[392913277,1762131300875,500.0,0.00037517,60]
[392913278,1762131301124,500.0,0.00037517,60]
[392913279,1762131301372,500.0,0.00037517,60]
[392913280,1762131301643,500.0,0.00037517,60]
[392913281,1762131301902,500.0,0.00037517,60]
[392913282,1762131302157,500.0,0.00037517,60]
[392913283,1762131302392,500.0,0.00037517,60]
[392913284,1762131302643,500.0,0.00037517,60]
[392913285,1762131302883,536.62,0.00037517,60]
[392913286,1762131302950,500.0,0.00037517,60]
[392913287,1762131303180,377.57,0.00037517,60]
[392913288,1762131309074,151.0,0.00037517,120]
[392913289,1762131309687,156.587,0.00037517,120]
[392913290,1762131310379,162.380719,0.00037517,120]
[392913291,1762131310988,168.3888056,0.00037517,120]
[392913292,1762131311611,174.61919141,0.00037517,120]
[392913293,1762131312278,181.08010149,0.00037517,120]
[392913294,1762131312792,500.0,0.00037517,60]
[392913295,1762131312879,187.78006525,0.00037517,120]
[392913296,1762131313023,500.0,0.00037517,60]
[392913297,1762131313257,460.32,0.00037517,60]
[392913298,1762131313492,194.72792766,0.00037517,120]
[392913299,1762131314225,201.93286099,0.00037517,120]
[392913300,1762131314752,209.40437684,0.00037517,120]
[392913301,1762131315128,886.953452,0.00013699,2]
[392913302,1762131315396,217.15233878,0.00037517,120]
[392913303,1762131316005,225.18697532,0.00037517,120]
[392913304,1762131316595,233.51889341,0.00037517,120]
[392913305,1762131317291,242.15909246,0.00037517,120]
[392913306,1762131317836,242.15909246,0.00037517,120]
[392913308,1762131326646,500.0,0.00037517,60]
[392913309,1762131326894,500.0,0.00037517,60]
[392913310,1762131327186,500.0,0.00037517,60]
[392913311,1762131327496,500.0,0.00037517,60]
[392913312,1762131327664,586.33,0.00037517,60]
[392913313,1762131332562,500.0,0.00037517,60]
[392913314,1762131332805,500.0,0.00037517,60]
[392913315,1762131333054,500.0,0.00037517,60]
[392913316,1762131333644,500.0,0.00037517,60]
[392913317,1762131333878,526.65,0.00037517,60]
[392913318,1762131335646,500.0,0.00037517,60]
[392913319,1762131335886,500.0,0.00037517,60]
[392913320,1762131336139,500.0,0.00037517,60]
[392913321,1762131336420,500.0,0.00037517,60]
[392913322,1762131336683,500.0,0.00037517,60]
[392913323,1762131337006,500.0,0.00037517,60]
[392913324,1762131337248,500.0,0.00037517,60]
[392913325,1762131337487,500.0,0.00037517,60]
[392913326,1762131337905,239.45,0.00037517,60]
[392913327,1762131341532,555.02,0.00037517,60]
[392913328,1762131343322,500.0,0.00037517,60]
[392913330,1762131458956,500.0,0.00037517,60]
[392913334,1762131474859,500.0,0.00037517,60]
[392913335,1762131488176,500.0,0.00037517,60]
[392913336,1762131510323,500.0,0.00037517,60]
[392913337,1762131543126,500.0,0.00037517,60]
[392913338,1762131543366,500.0,0.00037517,60]
[392913339,1762131543676,500.0,0.00037517,60]
[392913341,1762131544181,500.0,0.00037517,60]
[392913342,1762131544428,500.0,0.00037517,60]
[392913343,1762131544679,500.0,0.00037517,60]
[392913344,1762131548046,500.0,0.00037517,60]
[392913345,1762131548313,594.64903624,0.00037517,60]
[392913347,1762131634494,500.0,0.00037511,60]
[392913348,1762131634726,500.0,0.00037511,60]
[392913351,1762131677120,500.0,0.00037511,60]
[392913352,1762131677331,500.0,0.00037511,60]
[392913353,1762131677390,500.0,0.00037511,60]
[392913354,1762131677604,447.90811794,0.00037511,60]
[392913355,1762131679417,500.0,0.00037511,60]
[392913356,1762131679646,500.0,0.00037511,60]
[392913357,1762131680141,500.0,0.00037511,60]
[392913358,1762131738946,423.98,0.0001864,3]
[392913360,1762131762931,300.0,0.00017526,2]
[392913361,1762131798032,5000.0,0.0001801,2]
[392913362,1762131819965,496.2255356,0.0001801,2]
[392913363,1762131828104,2783.18618441,0.0001801,2]
[392913364,1762131836710,-239.0,0.00018285,2]
[392913365,1762131836734,-38.13826527,0.00018285,2]
[392913366,1762131838846,-40.28683744,0.00018285,2]
[392913367,1762131838868,-259.71316256,0.00018309,2]
[392913369,1762131845480,2582.01278453,0.00018226,2]
[392913370,1762131850733,151.0,0.000199,7]
[392913371,1762131868177,1021.48187169,0.00018226,2]
[392913372,1762131875909,500.0,0.00037512,60]
[392913397,1762131889545,169.10314,8.769e-05,2]
[392913398,1762131890559,1200.0,0.00018226,2]
[392913399,1762131898391,500.0,0.00018226,2]
[392913415,1762132013757,-379.0986642,0.00018324,2]
[392913416,1762132019523,-308.83024389,0.00018324,2]
[392913417,1762132021118,-505.76798382,0.00018324,2]
[392913418,1762132027964,-218.31978488,0.00018324,2]
[392913421,1762132084113,272.49,0.00016384,2]
[392913422,1762132139264,9727.52,0.00017558,2]
[392913423,1762132139290,46059.5927459,0.00017558,2]
[392913424,1762132150844,3800.0,0.0001801,2]
[392913425,1762132159069,2378.94232881,0.0001801,2]
[392913426,1762132178054,-282.66079632,0.00018145,2]
[392913427,1762132180095,-257.29924645,0.00018145,2]
[392913428,1762132181768,-183.04008678,0.00018145,2]
[392913429,1762132182272,282.66079632,0.0001801,2]
[392913430,1762132183868,-168.82503303,0.00018145,2]
[392913431,1762132185800,-160.6283231,0.00018145,2]
[392913432,1762132187410,-645.5935185,0.00018145,2]
[392913433,1762132190033,-353.4064815,0.00018145,2]
[392913434,1762132192173,-165.02577896,0.00018145,2]
[392913435,1762132197358,1164.02577896,0.0001801,2]
[392913436,1762132198818,-409.2437743,0.00018145,2]
[392913438,1762132200844,-449.32869241,0.00018145,2]
[392913439,1762132202378,-508.90833633,0.00018145,2]
[392913440,1762132204685,166.02219758,0.0002,7]
[392913441,1762132205633,440.33933323,0.0001801,2]
[392913442,1762132220724,1367.48080304,0.0001801,2]
[392913491,1762132232043,-113.17746119,0.00018145,2]
[392913492,1762132232052,-329.22757847,0.00018234,2]
[392913494,1762132232063,-200.84290197,0.00018324,2]
[392913496,1762132232078,-121.70348564,0.00018324,2]
[392913498,1762132232090,-973.39651436,0.00018358,2]
[392913500,1762132232102,-219.96843815,0.00018358,2]
[392913502,1762132232111,-150.0,0.00018396,2]
[392913504,1762132232121,-168.0,0.00018421,2]
[392913506,1762132232131,-168.0,0.00018457,2]
[392913508,1762132232140,-1722.51819512,0.0001854,2]
[392913510,1762132232150,-300.0,0.0001856,2]
[392913512,1762132232159,-300.0,0.0001856,2]
[392913514,1762132232168,-1200.0,0.0001856,2]
[392913516,1762132232177,-500.0,0.00018561,2]
[392913518,1762132232186,-500.0,0.00018561,2]
[392913520,1762132232196,-4822.09448187,0.00018561,2]
[392913522,1762132232205,-166.65,0.00018562,2]
[392913524,1762132232214,-292.96,0.00018566,2]
[392913525,1762132232223,-9471.02373881,0.00018567,2]
[392913527,1762132232232,-4598.74497426,0.00018567,2]
[392913529,1762132232240,-12585.53198369,0.0001865,2]
[392913532,1762132232260,-1094.46593539,0.0001865,2]
[392913534,1762132232270,-13298.10561594,0.0001865,2]
[392913677,1762132237910,-13299.49217787,0.0001865,2]
[392913678,1762132237921,-12696.17368706,0.0001865,2]
[392913679,1762132237965,-314.83229562,0.0001865,2]
[392913689,1762132240487,-3e-08,0.0001865,2]
[392913690,1762132240498,-15753.06410787,0.0001865,2]
[392913705,1762132243043,-305.34100651,0.0001856,2]
[392913714,1762132282254,21986.8718405,0.00017646,2]
[392913715,1762132385748,150.0,0.0001787,2]
[392913716,1762132510749,9239.9341604,0.00017706,2]
[392913724,1762132611898,1159.957454,0.00017526,2]
[392913726,1762132643079,-150.0,0.00018037,2]
[392913727,1762132643100,-92.41796442,0.00018177,2]
[392913732,1762132646685,944.4659354,0.00017454,2]
[392913733,1762132650638,272.76753551,0.0001801,2]
[392913740,1762132780229,150.0,0.00017993,2]
[392913743,1762132866184,999.0,0.00032876,120]
[392913744,1762132884760,-150.0,0.00018051,2]
[392913745,1762132884781,-159.20702454,0.00018161,2]
[392913746,1762132889991,309.20702454,0.0001801,2]
[392913763,1762133031465,508.55808915,0.00037504,60]
[392913764,1762133048089,161.367239,0.0001762,2]
[392913800,1762133123078,1912.77548284,0.00017358,2]
[392913876,1762133287030,2300.65002258,0.000125,2]
[392913878,1762133307935,501.36,0.00018,2]
[392913882,1762133371364,500.0,0.00037504,60]
[392913883,1762133371599,500.0,0.00037504,60]
[392913884,1762133371841,500.0,0.00037504,60]
[392913885,1762133372153,500.0,0.00037504,60]
[392913886,1762133372353,500.0,0.00037504,60]
[392913887,1762133372951,500.0,0.00037504,60]
[392913888,1762133373214,500.0,0.00037504,60]
[392913890,1762133373491,500.0,0.00037504,60]
[392913891,1762133373740,500.0,0.00037504,60]
[392913892,1762133373967,500.0,0.00037504,60]
[392913893,1762133390922,150.0,0.0001792,2]
[392913895,1762133407322,215.33569345,0.0001801,2]
[392913896,1762133407802,999.0,0.0001733,2]
[392913900,1762133408559,-193.53424606,0.00018116,2]
[392913903,1762133409380,300.05586762,0.00037504,60]
[392913908,1762133413266,152.7472802,0.00037504,60]
[392913910,1762133414795,166.67364249,0.00037504,120]
[392913912,1762133419589,687.25270708,0.00017358,2]
[392913913,1762133421730,4000.0,0.000328,120]
[392913914,1762133421829,2749.01082832,0.00017358,2]
[392913915,1762133424212,6179.08908936,0.00017358,2]
[392913946,1762133432166,-38.50227393,0.00018116,2]
[392913947,1762133432177,-319.45888641,0.00018216,2]
[392913948,1762133432187,-238.0,0.00018216,2]
[392913949,1762133432196,-300.0,0.0001827,2]
[392913950,1762133432206,-300.0,0.0001827,2]
[392913952,1762133432215,-200.0,0.0001827,2]
[392913954,1762133432225,-1200.0,0.0001827,2]
[392913956,1762133432235,-500.0,0.0001827,2]
[392913958,1762133432244,-500.0,0.0001827,2]
[392913960,1762133432253,-159.22049582,0.0001827,2]
[392913961,1762133432263,-8802.39914434,0.00018271,2]
[392913964,1762133432274,-29268.30674337,0.00018271,2]
[392913966,1762133432283,-373.22063724,0.00018271,2]
[392913967,1762133432292,-1492.88254897,0.00018271,2]
[392913969,1762133432301,-3358.98573518,0.00018271,2]
[392913971,1762133432310,-5965.55866568,0.00018271,2]
[392913973,1762133432319,-367.76,0.000183,2]
[392913975,1762133432328,-367.76,0.000183,2]
[392913977,1762133432337,-367.76,0.000183,2]
[392913979,1762133432346,-4023.90185246,0.00018364,2]
[392913981,1762133432355,-367.76,0.000184,2]
[392913983,1762133432364,-367.76,0.000184,2]
[392913985,1762133432373,-367.76,0.000184,2]
[392913987,1762133432383,-589.0,0.00018414,2]
[392913989,1762133432392,-2246.15753708,0.00018436,2]
[392913991,1762133432402,-172.48401537,0.00018464,2]
[392913993,1762133432411,-9263.98777423,0.00018464,2]
[392913995,1762133432420,-367.76,0.000185,2]
[392913997,1762133432429,-367.76,0.000185,2]
[392913999,1762133432438,-367.76,0.000185,2]
[392914001,1762133432447,-500.0,0.00018522,2]
[392914003,1762133432456,-500.0,0.00018522,2]
[392914005,1762133432465,-500.0,0.00018522,2]
[392914007,1762133432474,-448.11369138,0.00018522,2]
[392914100,1762133441650,150.04794079,0.00037504,60]
[392914116,1762133472821,15000.0,0.00018,2]
[392914117,1762133479352,463.62487124,0.00037504,60]
[392914118,1762133502646,551.1822859,0.00037504,60]
[392914119,1762133504702,540.86877891,0.00037504,60]
[392914120,1762133509836,507.8534062,0.00037504,60]
[392914121,1762133512178,262.28243377,0.00037504,60]
[392914122,1762133515582,502.41529257,0.00037504,60]
[392914123,1762133516803,508.75045143,0.00037504,60]
[392914124,1762133518045,518.09575744,0.00037504,60]
[392914125,1762133518618,512.29426091,0.00037504,60]